[Event "Titled Tuesday Blitz May 17 Early 2022"]
[White "Zakhartsov, Vladimir"]
[Black "Sjugirov, Sanan"]
[WhiteFideId "4145097"]
[BlackFideId "4189302"]
[WhiteElo "2428"]
[BlackElo "2602"]
[Result "1/2-1/2"]
[Round "09"]
[TimeControl "180+1"]
[Date "2022.05.17"]
[WhiteClock "0:00:11"]
[BlackClock "0:00:05"]

1. d4 {[%clk 0:03:00]}  Nf6 {[%clk 0:02:59]} 2. c4 {[%clk 0:03:01]}  e6 {[%clk 0:03:00]} 3. Nc3 {[%clk 0:03:01]}  Bb4 {[%clk 0:02:59]} 4. e3 {[%clk 0:03:02]}  O-O {[%clk 0:02:59]} 5. Bd2 {[%clk 0:03:02]}  d5 {[%clk 0:02:56]} 6. Nf3 {[%clk 0:03:01]}  b6 {[%clk 0:02:51]} 7. cxd5 {[%clk 0:03:02]}  exd5 {[%clk 0:02:52]} 8. Bd3 {[%clk 0:03:02]}  Re8 {[%clk 0:02:37]} 9. O-O {[%clk 0:02:56]}  Bd6 {[%clk 0:02:31]} 10. Qc2 {[%clk 0:02:43]}  Bg4 {[%clk 0:02:20]} 11. Ng5 {[%clk 0:02:19]}  h6 {[%clk 0:02:11]} 12. Nh7 {[%clk 0:02:19]}  Nbd7 {[%clk 0:02:02]} 13. h3 {[%clk 0:02:07]}  Be6 {[%clk 0:02:01]} 14. Nxf6+ {[%clk 0:02:07]}  Nxf6 {[%clk 0:02:02]} 15. Nb5 {[%clk 0:02:07]}  Ne4 {[%clk 0:01:32]} 16. Rfc1 {[%clk 0:02:03]}  Nxd2 {[%clk 0:01:00]} 17. Qxd2 {[%clk 0:02:02]}  c5 {[%clk 0:00:58]} 18. Nxd6 {[%clk 0:01:55]}  Qxd6 {[%clk 0:00:58]} 19. dxc5 {[%clk 0:01:53]}  bxc5 {[%clk 0:00:59]} 20. Bf1 {[%clk 0:01:51]}  Qb6 {[%clk 0:00:56]} 21. b3 {[%clk 0:01:45]}  a5 {[%clk 0:00:52]} 22. Rc3 {[%clk 0:01:44]}  a4 {[%clk 0:00:45]} 23. Rac1 {[%clk 0:01:44]}  axb3 {[%clk 0:00:44]} 24. axb3 {[%clk 0:01:40]}  Ra5 {[%clk 0:00:40]} 25. Qc2 {[%clk 0:01:28]}  d4 {[%clk 0:00:36]} 26. Rxc5 {[%clk 0:01:17]}  Bxb3 {[%clk 0:00:34]} 27. Qf5 {[%clk 0:00:23]}  Rxc5 {[%clk 0:00:30]} 28. Qxc5 {[%clk 0:00:15]}  Qxc5 {[%clk 0:00:30]} 29. Rxc5 {[%clk 0:00:16]}  dxe3 {[%clk 0:00:30]} 30. fxe3 {[%clk 0:00:17]}  Rxe3 {[%clk 0:00:28]} 31. Kf2 {[%clk 0:00:17]}  Re8 {[%clk 0:00:20]} 32. Bd3 {[%clk 0:00:17]}  Be6 {[%clk 0:00:19]} 33. Be2 {[%clk 0:00:15]}  Rd8 {[%clk 0:00:18]} 34. Bf3 {[%clk 0:00:15]}  g6 {[%clk 0:00:18]} 35. h4 {[%clk 0:00:15]}  Kg7 {[%clk 0:00:18]} 36. Kg3 {[%clk 0:00:15]}  Rd4 {[%clk 0:00:18]} 37. Re5 {[%clk 0:00:15]}  Rb4 {[%clk 0:00:17]} 38. Rc5 {[%clk 0:00:14]}  Kf6 {[%clk 0:00:17]} 39. Kf2 {[%clk 0:00:14]}  Rd4 {[%clk 0:00:10]} 40. g3 {[%clk 0:00:13]}  Rb4 {[%clk 0:00:10]} 41. Ke3 {[%clk 0:00:13]}  Rb3+ {[%clk 0:00:10]} 42. Kf2 {[%clk 0:00:13]}  Rd3 {[%clk 0:00:10]} 43. Ra5 {[%clk 0:00:13]}  Rc3 {[%clk 0:00:10]} 44. Ke2 {[%clk 0:00:13]}  g5 {[%clk 0:00:09]} 45. hxg5+ {[%clk 0:00:13]}  hxg5 {[%clk 0:00:09]} 46. Kf2 {[%clk 0:00:13]}  Rc2+ {[%clk 0:00:10]} 47. Ke3 {[%clk 0:00:13]}  Rb2 {[%clk 0:00:10]} 48. Rc5 {[%clk 0:00:13]}  Rb3+ {[%clk 0:00:09]} 49. Kf2 {[%clk 0:00:13]}  Ra3 {[%clk 0:00:10]} 50. Rb5 {[%clk 0:00:13]}  g4 {[%clk 0:00:06]} 51. Be4 {[%clk 0:00:12]}  Ra2+ {[%clk 0:00:06]} 52. Ke3 {[%clk 0:00:12]}  Ra4 {[%clk 0:00:06]} 53. Rc5 {[%clk 0:00:12]}  Ra1 {[%clk 0:00:06]} 54. Kf2 {[%clk 0:00:11]}  Ra3 {[%clk 0:00:06]} 55. Rb5 {[%clk 0:00:11]}  Ke7 {[%clk 0:00:05]} 56. Rc5 {[%clk 0:00:11]}  Kd6 {[%clk 0:00:06]} 57. Rg5 {[%clk 0:00:11]}  f6 {[%clk 0:00:05]} 58. Rb5 {[%clk 0:00:10]}  Rc3 {[%clk 0:00:03]} 59. Ra5 {[%clk 0:00:09]}  Rb3 {[%clk 0:00:03]} 60. Kg2 {[%clk 0:00:09]}  Rb2+ {[%clk 0:00:03]} 61. Kg1 {[%clk 0:00:09]}  Bd7 {[%clk 0:00:04]} 62. Bf5 {[%clk 0:00:09]}  Bc6 {[%clk 0:00:03]} 63. Bxg4 {[%clk 0:00:08]}  Rg2+ {[%clk 0:00:03]} 64. Kf1 {[%clk 0:00:09]}  Rxg3 {[%clk 0:00:04]} 65. Be2 {[%clk 0:00:09]}  Rb3 {[%clk 0:00:03]} 66. Ra6 {[%clk 0:00:09]}  Kc5 {[%clk 0:00:03]} 67. Kf2 {[%clk 0:00:09]}  Rb2 {[%clk 0:00:03]} 68. Ra5+ {[%clk 0:00:09]}  Kd4 {[%clk 0:00:02]} 69. Kf1 {[%clk 0:00:06]}  Be4 {[%clk 0:00:02]} 70. Ra4+ {[%clk 0:00:05]}  Ke3 {[%clk 0:00:02]} 71. Ra3+ {[%clk 0:00:06]}  Kf4 {[%clk 0:00:03]} 72. Ke1 {[%clk 0:00:06]}  f5 {[%clk 0:00:02]} 73. Rc3 {[%clk 0:00:07]}  Ra2 {[%clk 0:00:02]} 74. Bc4 {[%clk 0:00:06]}  Ra1+ {[%clk 0:00:02]} 75. Kf2 {[%clk 0:00:07]}  Rh1 {[%clk 0:00:03]} 76. Bf1 {[%clk 0:00:07]}  Rh2+ {[%clk 0:00:04]} 77. Ke1 {[%clk 0:00:07]}  Rb2 {[%clk 0:00:04]} 78. Be2 {[%clk 0:00:07]}  Ke5 {[%clk 0:00:05]} 79. Rc5+ {[%clk 0:00:08]}  Kd4 {[%clk 0:00:05]} 80. Rc4+ {[%clk 0:00:08]}  Ke3 {[%clk 0:00:05]} 81. Rc3+ {[%clk 0:00:09]}  Kf4 {[%clk 0:00:06]} 82. Bf1 {[%clk 0:00:09]}  Ke5 {[%clk 0:00:05]} 83. Rc5+ {[%clk 0:00:09]}  Kd4 {[%clk 0:00:05]} 84. Rc4+ {[%clk 0:00:09]}  Kd5 {[%clk 0:00:06]} 85. Rc3 {[%clk 0:00:10]}  f4 {[%clk 0:00:06]} 86. Be2 {[%clk 0:00:11]}  Kd4 {[%clk 0:00:06]} 87. Rh3 {[%clk 0:00:11]}  Ra2 {[%clk 0:00:06]} 88. Rb3 {[%clk 0:00:09]}  Ra1+ {[%clk 0:00:06]} 89. Kf2 {[%clk 0:00:10]}  Rh1 {[%clk 0:00:07]} 90. Ra3 {[%clk 0:00:10]}  Rh2+ {[%clk 0:00:07]} 91. Kf1 {[%clk 0:00:10]}  Bc6 {[%clk 0:00:07]} 92. Ke1 {[%clk 0:00:10]}  Bd5 {[%clk 0:00:06]} 93. Rd3+ {[%clk 0:00:10]}  Ke4 {[%clk 0:00:06]} 94. Ra3 {[%clk 0:00:10]}  Ke5 {[%clk 0:00:04]} 95. Ra5 {[%clk 0:00:10]}  Kd4 {[%clk 0:00:04]} 96. Ra3 {[%clk 0:00:10]}  Bc6 {[%clk 0:00:04]} 97. Rd3+ {[%clk 0:00:10]}  Ke5 {[%clk 0:00:04]} 98. Rc3 {[%clk 0:00:11]}  Be4 {[%clk 0:00:03]} 99. Ra3 {[%clk 0:00:11]}  Rh1+ {[%clk 0:00:03]} 100. Kf2 {[%clk 0:00:11]}  Rb1 {[%clk 0:00:04]} 101. Ra5+ {[%clk 0:00:11]}  Kf6 {[%clk 0:00:05]} 102. Ra4 {[%clk 0:00:10]}  Ke5 {[%clk 0:00:05]} 103. Ra5+ {[%clk 0:00:11]}  Kd4 {[%clk 0:00:04]} 104. Ra4+ {[%clk 0:00:11]}  Ke5 {[%clk 0:00:05]} 105. Ra5+ {[%clk 0:00:11]} 1/2-1/2


[Site "https://www.chess.com"]

[Event "Titled Tuesday Blitz May 17 Early 2022"]
[White "Andreikin, Dmitry"]
[Black "Martinez Alcantara, Jose Eduardo"]
[WhiteFideId "4158814"]
[BlackFideId "3805662"]
[WhiteElo "2736"]
[BlackElo "2690"]
[Result "0-1"]
[Round "10"]
[TimeControl "180+1"]
[Date "2022.05.17"]
[WhiteClock "0:00:04"]
[BlackClock "0:00:07"]

1. Nf3 {[%clk 0:03:00]}  c5 {[%clk 0:02:58]} 2. c4 {[%clk 0:03:00]}  Nf6 {[%clk 0:02:59]} 3. Nc3 {[%clk 0:03:00]}  d5 {[%clk 0:02:59]} 4. cxd5 {[%clk 0:03:00]}  Nxd5 {[%clk 0:03:00]} 5. e4 {[%clk 0:03:00]}  Nb4 {[%clk 0:03:00]} 6. Bb5+ {[%clk 0:03:00]}  Bd7 {[%clk 0:02:55]} 7. a3 {[%clk 0:03:00]}  N4c6 {[%clk 0:02:47]} 8. d4 {[%clk 0:02:46]}  cxd4 {[%clk 0:02:46]} 9. Nxd4 {[%clk 0:02:46]}  e6 {[%clk 0:02:46]} 10. O-O {[%clk 0:02:41]}  a6 {[%clk 0:02:45]} 11. Be2 {[%clk 0:02:34]}  Nxd4 {[%clk 0:02:45]} 12. Qxd4 {[%clk 0:02:34]}  Nc6 {[%clk 0:02:45]} 13. Qd3 {[%clk 0:02:31]}  Be7 {[%clk 0:02:30]} 14. Rd1 {[%clk 0:02:30]}  Qc7 {[%clk 0:02:25]} 15. Bf4 {[%clk 0:02:29]}  Qd8 {[%clk 0:02:12]} 16. e5 {[%clk 0:02:25]}  Rc8 {[%clk 0:01:57]} 17. Ne4 {[%clk 0:02:23]}  Nb8 {[%clk 0:01:54]} 18. Qg3 {[%clk 0:02:21]}  Kf8 {[%clk 0:01:46]} 19. Bh5 {[%clk 0:02:20]}  Rc4 {[%clk 0:01:32]} 20. Ng5 {[%clk 0:02:04]}  g6 {[%clk 0:01:19]} 21. Nxe6+ {[%clk 0:01:49]}  fxe6 {[%clk 0:01:18]} 22. Bh6+ {[%clk 0:01:50]}  Kf7 {[%clk 0:01:17]} 23. Qf3+ {[%clk 0:01:48]}  Ke8 {[%clk 0:01:10]} 24. Qd3 {[%clk 0:01:45]}  Qc7 {[%clk 0:01:03]} 25. Bf3 {[%clk 0:01:43]}  Bb5 {[%clk 0:00:54]} 26. Qe3 {[%clk 0:01:39]}  Nd7 {[%clk 0:00:52]} 27. Bg7 {[%clk 0:01:38]}  Rg8 {[%clk 0:00:51]} 28. Qh6 {[%clk 0:01:38]}  Bf8 {[%clk 0:00:39]} 29. Bxf8 {[%clk 0:01:31]}  Nxf8 {[%clk 0:00:38]} 30. Rd6 {[%clk 0:01:28]}  Rg7 {[%clk 0:00:25]} 31. Rad1 {[%clk 0:01:23]}  Rd7 {[%clk 0:00:22]} 32. b3 {[%clk 0:01:18]}  Rc3 {[%clk 0:00:17]} 33. a4 {[%clk 0:01:18]}  Bd3 {[%clk 0:00:06]} 34. Qd2 {[%clk 0:00:59]}  Rxb3 {[%clk 0:00:06]} 35. Rc1 {[%clk 0:00:58]}  Qxc1+ {[%clk 0:00:04]} 36. Qxc1 {[%clk 0:00:57]}  Rb1 {[%clk 0:00:05]} 37. Qxb1 {[%clk 0:00:54]}  Bxb1 {[%clk 0:00:06]} 38. Rb6 {[%clk 0:00:53]}  Be4 {[%clk 0:00:05]} 39. Be2 {[%clk 0:00:51]}  Rd2 {[%clk 0:00:05]} 40. Bf1 {[%clk 0:00:49]}  Rd1 {[%clk 0:00:05]} 41. f3 {[%clk 0:00:48]}  Bd3 {[%clk 0:00:06]} 42. Kf2 {[%clk 0:00:48]}  Rxf1+ {[%clk 0:00:06]} 43. Ke3 {[%clk 0:00:49]}  Bc4 {[%clk 0:00:07]} 44. Rxb7 {[%clk 0:00:49]}  Bd5 {[%clk 0:00:08]} 45. Ra7 {[%clk 0:00:49]}  Nd7 {[%clk 0:00:08]} 46. Kf4 {[%clk 0:00:49]}  h6 {[%clk 0:00:08]} 47. Rxa6 {[%clk 0:00:49]}  Rb1 {[%clk 0:00:08]} 48. h4 {[%clk 0:00:44]}  Rb4+ {[%clk 0:00:08]} 49. Kg3 {[%clk 0:00:44]}  Nxe5 {[%clk 0:00:09]} 50. Ra7 {[%clk 0:00:45]}  g5 {[%clk 0:00:09]} 51. hxg5 {[%clk 0:00:43]}  hxg5 {[%clk 0:00:10]} 52. Rg7 {[%clk 0:00:44]}  Nf7 {[%clk 0:00:10]} 53. a5 {[%clk 0:00:44]}  Ra4 {[%clk 0:00:11]} 54. Rg8+ {[%clk 0:00:43]}  Ke7 {[%clk 0:00:11]} 55. Rb8 {[%clk 0:00:43]}  Rxa5 {[%clk 0:00:12]} 56. Rb2 {[%clk 0:00:42]}  Ra4 {[%clk 0:00:12]} 57. Rb8 {[%clk 0:00:42]}  g4 {[%clk 0:00:12]} 58. fxg4 {[%clk 0:00:42]}  Ne5 {[%clk 0:00:13]} 59. Kh3 {[%clk 0:00:34]}  Nxg4 {[%clk 0:00:11]} 60. Rg8 {[%clk 0:00:31]}  Nf6 {[%clk 0:00:11]} 61. Rg7+ {[%clk 0:00:32]}  Kd6 {[%clk 0:00:11]} 62. Rg6 {[%clk 0:00:30]}  Ne4 {[%clk 0:00:11]} 63. Rg8 {[%clk 0:00:26]}  Ra3+ {[%clk 0:00:11]} 64. Kh4 {[%clk 0:00:26]}  Ra1 {[%clk 0:00:12]} 65. Rd8+ {[%clk 0:00:23]}  Ke5 {[%clk 0:00:13]} 66. Kg4 {[%clk 0:00:23]}  Bc4 {[%clk 0:00:13]} 67. Kh5 {[%clk 0:00:19]}  Rg1 {[%clk 0:00:12]} 68. g4 {[%clk 0:00:19]}  Nf6+ {[%clk 0:00:12]} 69. Kg6 {[%clk 0:00:19]}  Rxg4+ {[%clk 0:00:12]} 70. Kf7 {[%clk 0:00:19]}  Nd5 {[%clk 0:00:12]} 71. Rh8 {[%clk 0:00:18]}  Rf4+ {[%clk 0:00:13]} 72. Kg7 {[%clk 0:00:18]}  Kd6 {[%clk 0:00:12]} 73. Rh1 {[%clk 0:00:18]}  Ke7 {[%clk 0:00:12]} 74. Rg1 {[%clk 0:00:17]}  Bd3 {[%clk 0:00:13]} 75. Kh8 {[%clk 0:00:15]}  Rf8+ {[%clk 0:00:09]} 76. Kg7 {[%clk 0:00:16]}  Nf6 {[%clk 0:00:08]} 77. Kh6 {[%clk 0:00:15]}  Rh8+ {[%clk 0:00:08]} 78. Kg5 {[%clk 0:00:15]}  Rg8+ {[%clk 0:00:08]} 79. Kh6 {[%clk 0:00:16]}  Rh8+ {[%clk 0:00:08]} 80. Kg5 {[%clk 0:00:16]}  Rh5+ {[%clk 0:00:08]} 81. Kf4 {[%clk 0:00:16]}  Rf5+ {[%clk 0:00:09]} 82. Ke3 {[%clk 0:00:16]}  Bb5 {[%clk 0:00:09]} 83. Rg7+ {[%clk 0:00:15]}  Kd6 {[%clk 0:00:10]} 84. Rb7 {[%clk 0:00:16]}  Bc6 {[%clk 0:00:10]} 85. Rb8 {[%clk 0:00:16]}  Nd5+ {[%clk 0:00:11]} 86. Ke2 {[%clk 0:00:16]}  e5 {[%clk 0:00:11]} 87. Rd8+ {[%clk 0:00:16]}  Kc5 {[%clk 0:00:11]} 88. Rc8 {[%clk 0:00:15]}  e4 {[%clk 0:00:11]} 89. Rd8 {[%clk 0:00:15]}  Bb5+ {[%clk 0:00:11]} 90. Ke1 {[%clk 0:00:14]}  Kd4 {[%clk 0:00:10]} 91. Kd2 {[%clk 0:00:13]}  e3+ {[%clk 0:00:10]} 92. Kc2 {[%clk 0:00:14]}  Rf2+ {[%clk 0:00:09]} 93. Kd1 {[%clk 0:00:11]}  Kc3 {[%clk 0:00:07]} 94. Rc8+ {[%clk 0:00:08]}  Bc4 {[%clk 0:00:08]} 95. Rf8 {[%clk 0:00:04]}  Rxf8 {[%clk 0:00:07]} 0-1


[Site "https://www.chess.com"]

[Event "Titled Tuesday Blitz May 17 Early 2022"]
[White "Babazada, Khazar"]
[Black "Lazavik, Denis"]
[WhiteFideId "13413554"]
[BlackFideId "13515110"]
[WhiteElo "2406"]
[BlackElo "2437"]
[Result "1/2-1/2"]
[Round "10"]
[TimeControl "180+1"]
[Date "2022.05.17"]
[WhiteClock "0:00:03"]
[BlackClock "0:00:07"]

1. e4 {[%clk 0:03:00]}  e5 {[%clk 0:03:00]} 2. Nf3 {[%clk 0:03:00]}  Nc6 {[%clk 0:03:00]} 3. Bb5 {[%clk 0:02:59]}  a6 {[%clk 0:03:01]} 4. Ba4 {[%clk 0:02:59]}  Nf6 {[%clk 0:03:01]} 5. O-O {[%clk 0:02:59]}  Be7 {[%clk 0:03:02]} 6. Re1 {[%clk 0:02:56]}  b5 {[%clk 0:03:02]} 7. Bb3 {[%clk 0:02:57]}  d6 {[%clk 0:03:02]} 8. c3 {[%clk 0:02:56]}  O-O {[%clk 0:03:02]} 9. h3 {[%clk 0:02:56]}  Bb7 {[%clk 0:03:03]} 10. d4 {[%clk 0:02:53]}  Re8 {[%clk 0:03:03]} 11. a3 {[%clk 0:02:46]}  Bf8 {[%clk 0:03:00]} 12. Nbd2 {[%clk 0:02:46]}  h6 {[%clk 0:02:58]} 13. Bc2 {[%clk 0:02:44]}  Nb8 {[%clk 0:02:57]} 14. b4 {[%clk 0:02:15]}  Nbd7 {[%clk 0:02:57]} 15. Bb2 {[%clk 0:02:15]}  g6 {[%clk 0:02:42]} 16. c4 {[%clk 0:02:13]}  exd4 {[%clk 0:02:37]} 17. Nxd4 {[%clk 0:02:11]}  bxc4 {[%clk 0:02:35]} 18. Nxc4 {[%clk 0:02:12]}  c5 {[%clk 0:02:31]} 19. Nb3 {[%clk 0:02:06]}  Bxe4 {[%clk 0:02:15]} 20. Bxe4 {[%clk 0:01:42]}  Rxe4 {[%clk 0:02:14]} 21. Rxe4 {[%clk 0:01:32]}  Nxe4 {[%clk 0:02:15]} 22. Qd3 {[%clk 0:01:32]}  Nef6 {[%clk 0:01:37]} 23. bxc5 {[%clk 0:01:31]}  dxc5 {[%clk 0:01:34]} 24. Rd1 {[%clk 0:01:09]}  Qc7 {[%clk 0:01:23]} 25. Qf3 {[%clk 0:01:09]}  Rb8 {[%clk 0:01:22]} 26. Nbd2 {[%clk 0:01:05]}  Bg7 {[%clk 0:01:20]} 27. Bc3 {[%clk 0:01:03]}  Re8 {[%clk 0:01:17]} 28. Rb1 {[%clk 0:01:00]}  Rb8 {[%clk 0:01:00]} 29. Re1 {[%clk 0:01:00]}  Re8 {[%clk 0:00:57]} 30. Rb1 {[%clk 0:01:00]}  Re6 {[%clk 0:00:48]} 31. Qa8+ {[%clk 0:00:42]}  Kh7 {[%clk 0:00:47]} 32. Ba5 {[%clk 0:00:35]}  Qf4 {[%clk 0:00:47]} 33. Qf3 {[%clk 0:00:29]}  Qxf3 {[%clk 0:00:30]} 34. Nxf3 {[%clk 0:00:30]}  Re4 {[%clk 0:00:31]} 35. Nfd2 {[%clk 0:00:27]}  Rd4 {[%clk 0:00:29]} 36. Rb7 {[%clk 0:00:27]}  Kg8 {[%clk 0:00:23]} 37. Kf1 {[%clk 0:00:24]}  Nf8 {[%clk 0:00:21]} 38. Ke2 {[%clk 0:00:19]}  Ne4 {[%clk 0:00:19]} 39. Ne3 {[%clk 0:00:12]}  Nxd2 {[%clk 0:00:18]} 40. Bxd2 {[%clk 0:00:13]}  Ra4 {[%clk 0:00:17]} 41. Bc1 {[%clk 0:00:10]}  Ne6 {[%clk 0:00:17]} 42. g3 {[%clk 0:00:10]}  c4 {[%clk 0:00:11]} 43. Rb4 {[%clk 0:00:09]}  Rxb4 {[%clk 0:00:10]} 44. axb4 {[%clk 0:00:09]}  Nd4+ {[%clk 0:00:07]} 45. Kd1 {[%clk 0:00:08]}  c3 {[%clk 0:00:06]} 46. Nd5 {[%clk 0:00:09]}  Nc6 {[%clk 0:00:07]} 47. Kc2 {[%clk 0:00:06]}  Kf8 {[%clk 0:00:05]} 48. Kb3 {[%clk 0:00:06]}  Bd4 {[%clk 0:00:03]} 49. Bxh6+ {[%clk 0:00:04]}  Ke8 {[%clk 0:00:02]} 50. Be3 {[%clk 0:00:05]}  Be5 {[%clk 0:00:03]} 51. Nxc3 {[%clk 0:00:03]}  Kd7 {[%clk 0:00:03]} 52. Kc4 {[%clk 0:00:04]}  Bd6 {[%clk 0:00:03]} 53. Bc5 {[%clk 0:00:03]}  Be5 {[%clk 0:00:03]} 54. Ne4 {[%clk 0:00:04]}  Ke6 {[%clk 0:00:03]} 55. Ng5+ {[%clk 0:00:03]}  Kf6 {[%clk 0:00:02]} 56. f4 {[%clk 0:00:04]}  Bb8 {[%clk 0:00:02]} 57. Kd5 {[%clk 0:00:04]}  Ne7+ {[%clk 0:00:02]} 58. Bxe7+ {[%clk 0:00:04]}  Kxe7 {[%clk 0:00:02]} 59. Ne4 {[%clk 0:00:04]}  Bc7 {[%clk 0:00:03]} 60. Kc6 {[%clk 0:00:04]}  Bd8 {[%clk 0:00:03]} 61. Nc5 {[%clk 0:00:03]}  a5 {[%clk 0:00:03]} 62. b5 {[%clk 0:00:03]}  f5 {[%clk 0:00:02]} 63. b6 {[%clk 0:00:03]}  Bxb6 {[%clk 0:00:02]} 64. Kxb6 {[%clk 0:00:04]}  Kd6 {[%clk 0:00:03]} 65. Nb7+ {[%clk 0:00:03]}  Kd5 {[%clk 0:00:03]} 66. Kxa5 {[%clk 0:00:04]}  Ke4 {[%clk 0:00:04]} 67. Nd6+ {[%clk 0:00:02]}  Kf3 {[%clk 0:00:04]} 68. Nf7 {[%clk 0:00:02]}  Kxg3 {[%clk 0:00:05]} 69. Ne5 {[%clk 0:00:02]}  Kxf4 {[%clk 0:00:03]} 70. Nxg6+ {[%clk 0:00:03]}  Kg3 {[%clk 0:00:04]} 71. h4 {[%clk 0:00:03]}  Kg4 {[%clk 0:00:04]} 72. Kb5 {[%clk 0:00:02]}  Kh5 {[%clk 0:00:04]} 73. Ne5 {[%clk 0:00:02]}  Kxh4 {[%clk 0:00:05]} 74. Kc4 {[%clk 0:00:03]}  Kg3 {[%clk 0:00:06]} 75. Kd3 {[%clk 0:00:04]}  f4 {[%clk 0:00:06]} 76. Ke4 {[%clk 0:00:02]}  f3 {[%clk 0:00:07]} 77. Nxf3 {[%clk 0:00:03]} 1/2-1/2


[Site "https://www.chess.com"]

[Event "Titled Tuesday Blitz May 17 Early 2022"]
[White "Chigaev, Maksim"]
[Black "Postny, Evgeny"]
[WhiteFideId "4108116"]
[BlackFideId "2804344"]
[WhiteElo "2457"]
[BlackElo "2500"]
[Result "1-0"]
[Round "10"]
[TimeControl "180+1"]
[Date "2022.05.17"]
[WhiteClock "0:00:04"]
[BlackClock "0:00:01"]

1. d4 {[%clk 0:02:59]}  Nf6 {[%clk 0:02:59]} 2. c4 {[%clk 0:02:59]}  e6 {[%clk 0:02:58]} 3. g3 {[%clk 0:03:00]}  d5 {[%clk 0:02:57]} 4. Bg2 {[%clk 0:03:00]}  Bb4+ {[%clk 0:02:56]} 5. Nd2 {[%clk 0:03:00]}  O-O {[%clk 0:02:55]} 6. Nf3 {[%clk 0:03:01]}  b6 {[%clk 0:02:54]} 7. O-O {[%clk 0:03:01]}  Bb7 {[%clk 0:02:54]} 8. Ne5 {[%clk 0:03:02]}  Be7 {[%clk 0:02:47]} 9. Qc2 {[%clk 0:02:51]}  c5 {[%clk 0:02:40]} 10. dxc5 {[%clk 0:02:48]}  Bxc5 {[%clk 0:02:36]} 11. cxd5 {[%clk 0:02:44]}  Bxd5 {[%clk 0:02:31]} 12. e4 {[%clk 0:02:41]}  Bb7 {[%clk 0:02:29]} 13. Nb3 {[%clk 0:02:41]}  Nbd7 {[%clk 0:02:19]} 14. Rd1 {[%clk 0:02:30]}  Qe7 {[%clk 0:02:04]} 15. Nxd7 {[%clk 0:02:28]}  Nxd7 {[%clk 0:02:03]} 16. Nxc5 {[%clk 0:02:28]}  Nxc5 {[%clk 0:02:03]} 17. b4 {[%clk 0:02:27]}  Na6 {[%clk 0:01:53]} 18. a3 {[%clk 0:02:25]}  Rfc8 {[%clk 0:01:42]} 19. Qe2 {[%clk 0:02:24]}  Nc7 {[%clk 0:01:27]} 20. Qg4 {[%clk 0:02:17]}  Ne8 {[%clk 0:01:22]} 21. Bb2 {[%clk 0:02:15]}  Rc2 {[%clk 0:01:13]} 22. Bd4 {[%clk 0:02:06]}  Rac8 {[%clk 0:01:12]} 23. h4 {[%clk 0:02:05]}  e5 {[%clk 0:01:10]} 24. Be3 {[%clk 0:02:04]}  Nf6 {[%clk 0:01:09]} 25. Qf5 {[%clk 0:02:01]}  h6 {[%clk 0:01:00]} 26. h5 {[%clk 0:01:48]}  R8c4 {[%clk 0:00:56]} 27. Rd5 {[%clk 0:01:20]}  Nxd5 {[%clk 0:00:38]} 28. exd5 {[%clk 0:01:21]}  Bc8 {[%clk 0:00:39]} 29. Qd3 {[%clk 0:01:18]}  e4 {[%clk 0:00:37]} 30. d6 {[%clk 0:01:03]}  Qe6 {[%clk 0:00:26]} 31. Qd1 {[%clk 0:00:57]}  Bd7 {[%clk 0:00:22]} 32. a4 {[%clk 0:00:31]}  R2c3 {[%clk 0:00:21]} 33. a5 {[%clk 0:00:27]}  Rd3 {[%clk 0:00:21]} 34. Qe1 {[%clk 0:00:24]}  Rxd6 {[%clk 0:00:18]} 35. axb6 {[%clk 0:00:23]}  axb6 {[%clk 0:00:19]} 36. Ra8+ {[%clk 0:00:18]}  Rc8 {[%clk 0:00:19]} 37. Qa1 {[%clk 0:00:09]}  Kh7 {[%clk 0:00:13]} 38. Ra7 {[%clk 0:00:07]}  Qc4 {[%clk 0:00:08]} 39. Qe5 {[%clk 0:00:05]}  Qe6 {[%clk 0:00:06]} 40. Qf4 {[%clk 0:00:05]}  Re8 {[%clk 0:00:04]} 41. Kh2 {[%clk 0:00:05]}  Rd5 {[%clk 0:00:03]} 42. Rb7 {[%clk 0:00:06]}  Rxh5+ {[%clk 0:00:03]} 43. Kg1 {[%clk 0:00:06]}  Rf5 {[%clk 0:00:04]} 44. Qc7 {[%clk 0:00:06]}  Bb5 {[%clk 0:00:03]} 45. Rxb6 {[%clk 0:00:05]}  Qc4 {[%clk 0:00:03]} 46. Qxc4 {[%clk 0:00:04]}  Bxc4 {[%clk 0:00:04]} 47. Rc6 {[%clk 0:00:05]}  Bd3 {[%clk 0:00:04]} 48. Rc7 {[%clk 0:00:04]}  Kg8 {[%clk 0:00:03]} 49. Bc5 {[%clk 0:00:04]}  Rf6 {[%clk 0:00:03]} 50. Bh3 {[%clk 0:00:04]}  Ra6 {[%clk 0:00:03]} 51. Bd7 {[%clk 0:00:05]}  Rea8 {[%clk 0:00:03]} 52. g4 {[%clk 0:00:05]}  Ra1+ {[%clk 0:00:03]} 53. Kh2 {[%clk 0:00:05]}  R1a2 {[%clk 0:00:03]} 54. Kg3 {[%clk 0:00:06]}  Rd8 {[%clk 0:00:03]} 55. Bc6 {[%clk 0:00:05]}  Rc2 {[%clk 0:00:01]} 56. Kf4 {[%clk 0:00:06]}  Rb8 {[%clk 0:00:01]} 57. Ke5 {[%clk 0:00:06]}  f6+ {[%clk 0:00:01]} 58. Ke6 {[%clk 0:00:06]}  Kh7 {[%clk 0:00:02]} 59. Ke7 {[%clk 0:00:06]}  Rg8 {[%clk 0:00:02]} 60. Be3 {[%clk 0:00:06]}  Re2 {[%clk 0:00:02]} 61. b5 {[%clk 0:00:06]}  Rb8 {[%clk 0:00:02]} 62. b6 {[%clk 0:00:03]}  Rb2 {[%clk 0:00:03]} 63. Bd7 {[%clk 0:00:03]}  R2xb6 {[%clk 0:00:02]} 64. Bf5+ {[%clk 0:00:03]}  g6 {[%clk 0:00:02]} 65. Bxb6 {[%clk 0:00:03]}  Rxb6 {[%clk 0:00:01]} 66. Kf8+ {[%clk 0:00:04]}  Kh8 {[%clk 0:00:01]} 67. Bxg6 {[%clk 0:00:04]} 1-0


[Site "https://www.chess.com"]

[Event "Titled Tuesday Blitz May 17 Early 2022"]
[White "De Silva, L M S T"]
[Black "Matinian, Nikita"]
[WhiteFideId "9953698"]
[BlackFideId "24129100"]
[WhiteElo "1631"]
[BlackElo "2422"]
[Result "0-1"]
[Round "10"]
[TimeControl "180+1"]
[Date "2022.05.17"]
[WhiteClock "0:00:02"]
[BlackClock "0:00:35"]

1. e4 {[%clk 0:03:00]}  c5 {[%clk 0:02:59]} 2. Nf3 {[%clk 0:03:00]}  d6 {[%clk 0:03:00]} 3. Bb5+ {[%clk 0:03:00]}  Nd7 {[%clk 0:03:00]} 4. Ba4 {[%clk 0:02:59]}  Nf6 {[%clk 0:02:58]} 5. O-O {[%clk 0:03:00]}  g5 {[%clk 0:02:58]} 6. e5 {[%clk 0:02:59]}  dxe5 {[%clk 0:02:50]} 7. Nxe5 {[%clk 0:03:00]}  Qc7 {[%clk 0:02:48]} 8. Re1 {[%clk 0:02:58]}  Bg7 {[%clk 0:02:45]} 9. d3 {[%clk 0:02:46]}  h6 {[%clk 0:02:39]} 10. Nc3 {[%clk 0:02:38]}  O-O {[%clk 0:02:38]} 11. Nxd7 {[%clk 0:02:36]}  Bxd7 {[%clk 0:02:38]} 12. Rxe7 {[%clk 0:02:28]}  Qd6 {[%clk 0:02:31]} 13. Re1 {[%clk 0:02:25]}  Ng4 {[%clk 0:02:31]} 14. g3 {[%clk 0:02:21]}  Bxc3 {[%clk 0:02:21]} 15. bxc3 {[%clk 0:02:17]}  Nxf2 {[%clk 0:02:19]} 16. Kxf2 {[%clk 0:02:15]}  Bxa4 {[%clk 0:02:20]} 17. Bb2 {[%clk 0:01:58]}  Bc6 {[%clk 0:02:08]} 18. c4 {[%clk 0:01:54]}  Rae8 {[%clk 0:02:05]} 19. Qd2 {[%clk 0:01:51]}  f6 {[%clk 0:01:45]} 20. Kg1 {[%clk 0:01:34]}  b6 {[%clk 0:01:43]} 21. Qf2 {[%clk 0:01:26]}  Kf7 {[%clk 0:01:27]} 22. Qf5 {[%clk 0:01:24]}  Kg7 {[%clk 0:01:21]} 23. Kf2 {[%clk 0:00:37]}  Re5 {[%clk 0:01:13]} 24. Qg4 {[%clk 0:00:22]}  h5 {[%clk 0:00:59]} 25. Qd1 {[%clk 0:00:10]}  Rf5+ {[%clk 0:00:56]} 26. Kg1 {[%clk 0:00:10]}  Kg6 {[%clk 0:00:47]} 27. Qd2 {[%clk 0:00:09]}  h4 {[%clk 0:00:45]} 28. g4 {[%clk 0:00:07]}  Rf4 {[%clk 0:00:43]} 29. Qe2 {[%clk 0:00:06]}  Bf3 {[%clk 0:00:40]} 30. Qe7 {[%clk 0:00:05]}  Rxg4+ {[%clk 0:00:40]} 31. Kf1 {[%clk 0:00:04]}  Bg2+ {[%clk 0:00:36]} 32. Kg1 {[%clk 0:00:02]}  Be4+ {[%clk 0:00:35]} 0-1


[Site "https://www.chess.com"]